Cogmind - Beta 14 @@@ ROGUE MODE // 2024.08.29 @ 18:35:12 Player: cabin Result: Destroyed by Y-45 Defender with Heavy Assault Rifle Performance ------------- Evolutions (2) 1000 Regions Visited (4) 800 Robots Destroyed (23) 115 Value Destroyed (718) 718 Prototype IDs (1) 20 Alien Tech Used (0) 0 Bonus (35) 35 TOTAL SCORE: 2688 Bonus ------- High Alert Combat Kills 35 Cogmind --------- Core Integrity 0/550 Matter 104/300 Energy 100/100 System Corruption 5% Temperature Cool (9) Movement Treading (145) Location -8/Storage Parts ------- > --- POWER (1) -------- (None) > --- PROPULSION (2) --- Advanced Treads > --- UTILITY (6) ------ Visual Processing Unit Improved Signal Interpreter Terrain Scan Processor > --- WEAPON (2) ------- (None) > --- INVENTORY (5) ---- Datajack Plasma Cutter Peak State ------------ > --- POWER ------------ Nuclear Core > --- PROPULSION ------- Improved Hover Unit Airjet > --- UTILITY ---------- Improved Heat Sink Visual Processing Unit Improved Signal Interpreter Terrain Scan Processor Advanced ECM Suite > --- WEAPON ----------- Advanced Assault Cannon Plasma Cutter > --- INVENTORY -------- Flight Unit Flight Unit Mini Grenade Launcher Datajack [Rating: 28] Favorites ----------- Power Light Ion Engine Engine Light Ion Engine Power Core Light Nuclear Core Propulsion Light Treads Treads Light Treads Hover Unit Improved Hover Unit Flight Unit Flight Unit Utility Terrain Scan Processor Device Improved Heat Sink Storage Small Storage Unit Processor Terrain Scan Processor Hackware Hacking Suite Weapon Light Assault Rifle Energy Gun EM Shotgun Ballistic Gun Light Assault Rifle Ballistic Cannon Advanced Assault Cannon Launcher Mini Grenade Launcher Special Weapon Plasma Cutter Build | -11 -10 -9 -8 -8 ------- Run | Yrd Mat Mat Mat Sto Slots Evolved 4 | . . 2 2 . Power . | . . . . . Propulsion . | . . . . . Utility 4 | . . 2 2 . Weapon . | . . . . . Parts Attached 41 | 6 3 9 18 5 Power 8 | 1 1 1 5 . Engine 6 | 1 1 . 4 . Core 2 | . . 1 1 . Reactor . | . . . . . Propulsion 11 | 2 . 2 4 3 Treads 3 | 2 . . . 1 Leg . | . . . . . Wheel . | . . . . . Hover 2 | . . . 2 . Flight 6 | . . 2 2 2 Utility 8 | 1 1 3 3 . Device 2 | . . 1 1 . Storage 1 | 1 . . . . Processor 4 | . 1 2 1 . Hackware 1 | . . . 1 . Protection . | . . . . . Artifact . | . . . . . Weapon 14 | 2 1 3 6 2 Energy Gun 3 | 1 1 1 . . Energy Cannon . | . . . . . Ballistic Gun 5 | 1 . 2 . 2 Ballistic Cannon 1 | . . . 1 . Launcher 4 | . . . 4 . Special Weapon 1 | . . . 1 . Impact Weapon . | . . . . . Slashing Weapon . | . . . . . Piercing Weapon . | . . . . . Special Melee Weapon . | . . . . . Unidentified Prototypes 1 | . . 1 . . Parts Lost 19 | . 1 3 9 6 Power 6 | . 1 1 3 1 Propulsion 5 | . . 1 2 2 Utility 3 | . . . 2 1 Weapon 5 | . . 1 2 2 Highest Loss Streak 14 | . 1 1 8 14 To Critical Strikes . | . . . . . Average Slot Usage (%) 79 | . 96 71 76 40 Engine 8 | . 14 3 6 1 Core 1 | . . 5 . . Treads 12 | . 28 8 . 2 Hover 1 | . . . 6 . Flight 6 | . . 12 10 2 Device 7 | . . 10 16 2 Storage 5 | . 14 . . . Processor 16 | . 10 13 21 27 Hackware 1 | . . . 6 . Energy Gun 5 | . 14 . . . Ballistic Gun 9 | . 14 16 . 6 Special Weapon 1 | . . . 4 . Peak Build Rating 28 | 6 9 14 28 14 Average Rating 12 | 4 8 12 20 11 On Entrance 7 | . 6 9 11 12 Naked Turns . | . . . . . Heaviest Build 14 | 11 12 12 14 8 Greatest Support 40 | 40 40 40 15 22 Greatest Overweight (x) 3 | 2 . 3 2 2 Average Overweight (x) . | . . . . . Largest Inventory Capacity 8 | 8 8 8 5 5 Average Capacity 6 | 7 8 5 5 5 Most Carried 5 | 1 5 5 5 4 Average Carried 3 | . 3 4 4 2 Final Capacity 8 | 8 8 5 5 5 Final Carried 5 | 1 5 5 4 2 Class Distribution -------------------- 70% | Mutant 29% | Scavenger-Mutant Dominant Class ---------------- Mutant | -10/Materials Mutant | -9/Materials Scavenger-Mutant | -8/Materials Mutant | -8/Storage Resources | -11 -10 -9 -8 -8 ----------- Run | Yrd Mat Mat Mat Sto Matter Collected 661 | 240 69 150 35 167 Remotely . | . . . . . Salvage Created 622 | . 197 206 116 103 Parts 44 | . 13 19 9 3 Haulers Intercepted . | . . . . . Recyclers Shooed . | . . . . . Parts Field Recycled . | . . . . . Retrieved Matter . | . . . . . Parts Self-Destructed . | . . . . . Prevented . | . . . . . Kills | -11 -10 -9 -8 -8 ------- Run | Yrd Mat Mat Mat Sto Combat Hostiles Destroyed 22 | . 5 6 9 2 Melee 1 | . . . . 1 Guns 12 | . 5 6 . 1 Cannons 2 | . . . 2 . AOE 7 | . . . 7 . Classes Destroyed 5 | . 1 2 2 . Watcher 1 | . . 1 . . Swarmer 7 | . . 2 5 . Grunt 13 | . 5 4 2 2 Duelist 1 | . . . 1 . Hunter 1 | . . . 1 . Best Kill Streak 4 | . 3 3 4 1 Combat Bots Only 4 | . 3 3 4 1 Max Kills in Single Turn 2 | . 1 1 2 1 Gunslinging . | . . . . . Exploded 2 | . . . 2 . Melee 1 | . . . . 1 Uniques/NPCs Destroyed . | . . . . . Combat | -11 -10 -9 -8 -8 -------- Run | Yrd Mat Mat Mat Sto Hostile Shots Fired 255 | . 34 68 75 78 Missed 70 | . 6 21 21 22 Damage Taken 2444 | . 353 506 791 794 Core 783 | . 70 153 257 303 Absorbed by Shields . | . . . . . Core Remaining (%) 77 | 100 72 61 . . Volleys Fired 79 | . 27 20 21 11 Largest 2 | . 2 2 1 2 Hottest 70 | . 70 46 48 50 Shots Fired 117 | . 40 36 21 20 Gun 96 | . 40 36 . 20 Cannon 11 | . . . 11 . Launcher 10 | . . . 10 . Special . | . . . . . Kinetic 94 | . 27 36 11 20 Thermal 4 | . 4 . . . Explosive 10 | . . . 10 . Electromagnetic 9 | . 9 . . . Robot Hit Streak 12 | . 4 10 7 12 Robot Miss Streak 4 | . 4 2 2 2 Penetration Max . | . . . . . Secondary Targets 2 | . 1 1 . . Max Gunslinging Chain 1 | . 1 1 . . Shots Hit Robots 76 | . 23 24 16 13 Core Hits 43 | . 12 11 14 6 Critical Kills 1 | . . 1 . . Critical Parts Destroyed . | . . . . . Critical Strikes 2 | . 1 1 . . Burn 1 | . 1 . . . Destroy 1 | . . 1 . . Melee Attacks . | . . . . . Impact . | . . . . . Slashing . | . . . . . Piercing . | . . . . . Sneak Attacks . | . . . . . Combat Hostiles . | . . . . . Follow-up Attacks . | . . . . . Damage Inflicted 1687 | 1 209 389 845 243 Guns 818 | . 209 389 . 220 Cannons 244 | . . . 244 . Explosions 589 | . . . 589 . Melee . | . . . . . Ramming 36 | 1 . . 12 23 Kinetic 974 | . 121 389 244 220 Thermal 37 | . 37 . . . Explosive 589 | . . . 589 . Electromagnetic 51 | . 51 . . . Impact . | . . . . . Slashing . | . . . . . Piercing . | . . . . . Highest Corruption 5 | . . . . 5 Average Corruption 2 | . . . . 2 Corruption Purged . | . . . . . Corruption Blocked . | . . . . . Effects 1 | . . . . 1 Misfires 1 | . . . . 1 Overload Shots . | . . . . . Overflow Damage 21 | . . . 21 . Projectiles . | . . . . . Explosions 21 | . . . 21 . Melee . | . . . . . Knockbacks . | . . . . . Impact . | . . . . . Kinetic . | . . . . . Secondary . | . . . . . Self-Inflicted Damage 201 | . . . 192 9 Shots 5 | . . . 5 . Rammed 12 | 1 . 1 2 8 Targets Rammed 13 | 1 . 1 2 9 Kicked . | . . . . . Crushed 1 | . . . . 1 Highest Temperature 122 | . 122 . 17 21 Average Temperature 41 | . 48 . 15 9 Received Heat Transfer 942 | . 201 219 198 324 Siege Activations . | . . . . . Robots Corrupted . | . . . . . Combat Hostiles . | . . . . . Parts Fried . | . . . . . Impact Corruptions . | . . . . . Robots Melted . | . . . . . Combat Hostiles . | . . . . . Parts Melted 1 | . 1 . . . Heat Transferred 185 | . 185 . . . Parts Sabotaged . | . . . . . Parts Stolen . | . . . . . Parts Stripped . | . . . . . Power Chain Reactions . | . . . . . Alert | -11 -10 -9 -8 -8 ------- Run | Yrd Mat Mat Mat Sto Peak Influence 498 | . 155 332 498 227 Initial 201 | . . 65 139 201 Average 167 | . 69 183 332 207 Maximum Alert Level 2 | . . 1 2 1 Low Security (%) 59 | 100 100 51 17 4 Level 1 30 | . . 48 47 95 Level 2 9 | . . . 35 . Level 3 . | . . . . . Level 4 . | . . . . . Level 5 . | . . . . . High Security . | . . . . . Max Security . | . . . . . Squads Dispatched 6 | . 1 2 2 1 Investigation 2 | . 1 1 . . Extermination . | . . . . . Reinforcement 4 | . . 1 2 1 Assault . | . . . . . Garrison . | . . . . . Intercept . | . . . . . Searches Triggered . | . . . . . Construction Impeded . | . . . . . Haulers Reinforced . | . . . . . Active Scanning Responses . | . . . . . Cargo Convoy Interrupts . | . . . . . Stealth | -11 -10 -9 -8 -8 --------- Run | Yrd Mat Mat Mat Sto Distress Signals 4 | . 1 3 . . Communications Jammed . | . . . . . Distress Signals . | . . . . . Times Spotted 66 | . 9 25 20 12 Peak Tracking Total 11 | . 3 11 5 10 Tactical Retreats 5 | . 1 2 2 . Traps | -11 -10 -9 -8 -8 ------- Run | Yrd Mat Mat Mat Sto Traps Triggered 2 | . . 1 1 . Indirectly . | . . . . . Trap Hack Attempts . | . . . . . Triggered . | . . . . . Disarmed . | . . . . . Reprogrammed . | . . . . . Reused . | . . . . . Traps Extracted . | . . . . . Installed . | . . . . . Triggered . | . . . . . Machines | -11 -10 -9 -8 -8 ---------- Run | Yrd Mat Mat Mat Sto Machines Disabled 1 | . . 1 . . Max in Single Turn 1 | . . 1 . . Machines Repaired . | . . . . . Machines Dismantled . | . . . . . Machines Sabotaged . | . . . . . Overloaded Fab Kills . | . . . . . Hacking | -11 -10 -9 -8 -8 --------- Run | Yrd Mat Mat Mat Sto Machines Accessed 4 | . 2 . 2 . Terminals 3 | . 2 . 1 . Fabricators . | . . . . . Repair Stations . | . . . . . Recycling Units 1 | . . . 1 . Scanalyzers . | . . . . . Garrison Access . | . . . . . Total Hacks 9 | . 3 . 6 . Successful 3 | . 1 . 2 . Failed 6 | . 2 . 4 . Catastrophic 2 | . 1 . 1 . Database Lockouts . | . . . . . Manual . | . . . . . Terminals 5 | . 3 . 2 . Fabricators . | . . . . . Repair Stations . | . . . . . Recycling Units 4 | . . . 4 . Scanalyzers . | . . . . . Garrison Access . | . . . . . Terminal Hacks 2 | . 1 . 1 . Emergency Access Points 1 | . . . 1 . Zone Layout 1 | . 1 . . . Fabricator Hacks . | . . . . . Repair Station Hacks . | . . . . . Recycling Unit Hacks 1 | . . . 1 . Retrieve Components 1 | . . . 1 . Scanalyzer . | . . . . . Garrison Access Hacks . | . . . . . Unauthorized Hacks . | . . . . . Terminals . | . . . . . Fabricators . | . . . . . Repair Stations . | . . . . . Recycling Units . | . . . . . Scanalyzers . | . . . . . Garrison Access . | . . . . . Data Cores Recovered . | . . . . . Used . | . . . . . Hacking Detections 3 | . 1 . 2 . Full Trace Events 1 | . 1 . . . Feedback Events . | . . . . . Feedback Blocked . | . . . . . Robot Schematics Acquired . | . . . . . Robots Built . | . . . . . Authchips . | . . . . . Time . | . . . . . Total Robot Build Rating . | . . . . . Part Schematics Acquired . | . . . . . Parts Built . | . . . . . Authchips . | . . . . . Time . | . . . . . Total Part Build Rating . | . . . . . Parts Repaired . | . . . . . Time . | . . . . . Parts Recycled . | . . . . . Recycled Matter . | . . . . . Retrieved Matter . | . . . . . Retrieved Components 2 | . . . 2 . Parts Scanalyzed . | . . . . . Part Schematics Acquired . | . . . . . Parts Damaged . | . . . . . Bothacking | -11 -10 -9 -8 -8 ------------ Run | Yrd Mat Mat Mat Sto Used RIF Installer . | . . . . . Robots Hacked . | . . . . . Non-combat . | . . . . . Combat . | . . . . . Robot Hacks Applied . | . . . . . Relay Couplers Released . | . . . . . Fabnet Peak Effective % . | . . . . . Robots Rewired . | . . . . . Allies Hacked . | . . . . . Hacks Repelled . | . . . . . Allies | -11 -10 -9 -8 -8 -------- Run | Yrd Mat Mat Mat Sto Total Allies . | . . . . . Largest Group . | . . . . . Highest-Rated Group . | . . . . . Highest-Rated Ally . | . . . . . Total Orders . | . . . . . Ally Attacks . | . . . . . Total Damage . | . . . . . Kills . | . . . . . Allies Corrupted . | . . . . . Allies Melted . | . . . . . Intel | -11 -10 -9 -8 -8 ------- Run | Yrd Mat Mat Mat Sto Robot Analysis Total . | . . . . . Derelict Logs Recovered . | . . . . . Drone Launches . | . . . . . Drone Recoveries . | . . . . . Exploration | -11 -10 -9 -8 -8 ------------- Run | Yrd Mat Mat Mat Sto Turns Passed 1100 | 121 360 243 294 82 Spaces Moved 890 | 74 179 209 363 65 Core 45 | 13 . 2 9 21 Treads 278 | 61 179 35 . 3 Legs . | . . . . . Wheels . | . . . . . Hover 118 | . . . 118 . Flight 449 | . . 172 236 41 Fastest Speed 37 | 50 160 37 37 40 Average Speed 91 | 148 160 81 57 58 Slowest Speed 200 | 160 160 200 150 150 Overloaded Moves . | . . . . . Propulsion Burnouts . | . . . . . Robots Hopped 5 | . . 1 . 4 Cave-ins Triggered . | . . . . . Exploration Rate (%) 24 | 5 26 30 33 29 Regions Visited 4 Branch Regions 1 Pre-discovered Areas . | . . . . . Known Exits Taken 1 | . . . 1 . Unknown Exits Taken 3 | 1 1 1 . . Scrap Searched . | . . . . . Spaces Dug . | . . . . . Terrain Destroyed 73 | . . . 73 . Melee . | . . . . . Projectile 1 | . . . 1 . AOE 72 | . . . 72 . Terrain Rammed . | . . . . . Walls Destroyed . | . . . . . Machines Disabled . | . . . . . Actions | -11 -10 -9 -8 -8 --------- Run | Yrd Mat Mat Mat Sto Total 1058 | 82 218 245 426 87 Wait 8 | 1 3 . 3 1 Move 876 | 73 178 206 362 57 Hop 5 | . . 1 . 4 Pick Up 13 | 1 5 1 6 . Fast Attach 28 | 6 2 6 11 3 Attach 11 | . 1 1 7 2 Detach 7 | . 1 1 5 . Swap 2 | . . 2 . . Drop 14 | . 1 6 7 . Fire 79 | . 27 20 21 11 Melee . | . . . . . Ram 9 | 1 . 1 2 5 Kick . | . . . . . Crush 4 | . . . . 4 Escape Stasis . | . . . . . Rewire . | . . . . . Trap . | . . . . . Miscellaneous 2 | . . . 2 . Route ------- -11/Scrapyard -10/Materials -9/Materials -8/Materials -8/Storage History --------- Turn | Location | Event 15 | -11/Scrapyard | Discovered new exit (range 15) 122 | -11/Scrapyard | Entered Materials 300 | -10/Materials | Build established: Mutant 458 | -10/Materials | Discovered new exit (range 13) 482 | -10/Materials | Entered another Materials area 482 | -9/Materials | Evolved 2 slots: Utility x2 719 | -9/Materials | Discovered new exit (range 16) 725 | -9/Materials | Entered another Materials area 725 | -8/Materials | Evolved 2 slots: Utility x2 893 | -8/Materials | Build established: Scavenger-Mutant 1007 | -8/Materials | Discovered new exit (range 7) 1017 | -8/Materials | Identified exit to Storage 1019 | -8/Materials | Entered Storage 1045 | -8/Storage | Core integrity fell below 50% 1087 | -8/Storage | Core integrity fell below 20% 1101 | -8/Storage | Destroyed by Y-45 Defender with Heavy Assault Rifle Last Messages --------------- 01078_ Penetrated by Slug. 01079_ Slammed into G-47 Trooper. 01079_ Minigun destroyed. 01081_ K-01 Serf collects debris. 01085_ System corrupted: FCS attempts to trigger Minigun. 01085_ System corrupted: Minigun misfires. 01085_ Acquired Adv. Treads. 01086_ Critical hit (Burn: +37). 01090_ K-01 Serf collects debris. 01093_ Critical hit (Burn: +37). 01094_ Slammed into G-47 Trooper. 01097_ U-05 Engineer builds a Door. 01097_ Minigun destroyed. 01097_ Slug penetrates Wall. 01097_ Crushed G-47 Trooper. 01097_ G-47 Trooper destroyed. 01099_ Slammed into A-02 Transporter. 01099_ U-05 Engineer builds a Door. 01100_ Acquired 46 matter. Map ----- +----------------------------------------------------+ | | | | | | | | | | | | | ?????????????????????????????????????????? | | ?????????????????????????????????????????? | | ?????????????????????????????????????????? | | ?????????????????????????????????????????? | | ?????????????????????????????????????????? | | ?????????????????????????????????????????? | | ???????????????##????????????????????????? | | ??????????????? ???????????????????????? | | ??????????????? ???????????????????????? | | ??????????????? ???????????????????????? | | ??????????????? ???????????????????????? | | ??????????????? ???????????????????????? | | ????????????????" ???????????????????????? | | ????????????????" ???????????????????????? | | ????????????????" ???????????#???????????? | | ???????????????##+########## #????#??????? | | ???###########?# u/ ###"T"??????? | | ???# ?# # + ????????? | | ???# + # !] #???????????? | | ???# # @Y# !] # """?????? | | ???# + += [ / """?????? | | ???# # h# # """?????? | | ???# ????????# Ya# #???????????? | | ???????????????# YY# + ?????????? | | ??????#####????# ##############????????? | | ??????? ???# #?????????????????????? | | ???????""" ??# ###########???????????? | | ???????""" ?# + #???????????? | | ??????#""" # # %% #???????????? | | ??????# # # % #???????????? | | ?????????? = + # %%% #???????????? | | ???????""" #r # "" #???????????? | | ???????""" ?# # Y" #???????????? | | ??????# ??# w # ! "" #???????????? | | ?????#######???# # #???????????? | | ???# ####### #####/#########+#+###?? | | ???# #?? | | ???# ] +?? | | ???# #?? | | ???# ###############/#############???? | | ???## ???????????# """ #?????????????? | | ????# ???????????# "R" #?????????????? | | ????# #??????????# " " ##????????????? | | ????# #??????????# T#????????????? | +----------------------------------------------------+ Best States ------------- Heat Dissipation 45 Energy Generation 14 Energy Capacity 265 Matter Stores 300 Matter Capacity 300 Sight Range 18 Terrain Scan Density 85 ECM Strength 2 Evasion (%) 62 Recoil Reduction 2 Offensive Hacking 10 Item Schematics ----------------- None Robot Schematics ------------------ None Fabricated ------------ Nothing Alien Tech Used ----------------- None Achievements -------------- None Challenges ------------ None Game ------ Seed StealthThermicRifle Manual? 0 Play Time 00:15:42 Cumulative 16.6 hours Start 2024.08.29 @ 18:18:36 End 2024.08.29 @ 18:35:12 Sessions 1 Manual Loads 0 Difficulty Rogue Special Mode None Game No. 40 Rogue 39 Adventurer 1 Explorer 0 Win Type - Total 0 Types 0/0/0/0/0/0/0/0/0 Lore% 6 Gallery% 24 Achievement% 18 Wizard Run 0 Options --------- Layout 2 ASCII 0 Keyboard 1 Movement Numpad Keybinds 0 Fullscreen 1 Font 24/Smallcaps Map View 50x44 Zoom Use 0% Tactical HUD 1 Map Filters NONE Filters NONE Steam 1 RUN: 14cb5785-2312-4be0-9882-1fb393bb3423